bitfinex/quotes_ETHUSD_20241203
["timestamp","ask_amount","ask_price","bid_price","bid_amount"]
[1733261891236,1.23635619,3623.9,3623.1,4.31259]
[1733261891393,1.23635619,3623.9,3623.1,1.5526]
[1733261891394,0.46487833,3623.8,3623.1,1.5526]
[1733261891596,0.46487833,3623.7,3623.1,1.5526]
[1733261891791,0.20661259,3623.6,3623.2,2.75999]
[1733261892042,0.23429843,3623.6,3623.5,2.75976]
[1733261892258,0.41124817,3624.1,3623.1,1.5526]
[1733261892407,1.2084762,3624.0,3623.7,2.7596]
[1733261892736,0.79532195,3623.9,3623.7,2.7596]
[1733261893054,0.41124817,3624.1,3623.1,1.5526]
[1733261893055,0.46479852,3623.8,3623.1,1.5526]
[1733261893210,0.46479852,3623.7,3623.1,1.5526]
[1733261893546,4.08491433,3624.2,3623.7,2.7596]
[1733261893764,1.20860719,3624.1,3623.8,2.75951]
[1733261894057,1.20860719,3624.0,3623.9,2.7594]
[1733261894410,0.79540815,3624.0,3623.9,2.7594]
[1733261894611,0.79544721,3624.0,3623.9,2.7594]
[1733261895037,0.46484892,3624.0,3623.9,2.7594]
[1733261895423,0.46487317,3624.0,3623.9,2.7594]
[1733261896057,0.46487317,3624.0,3623.1,1.5526]
[1733261896212,0.20662377,3624.0,3623.4,2.7598]
[1733261896419,0.20662377,3623.9,3623.5,2.75976]
[1733261896614,1.5851,3624.2,3623.8,2.75946]
[1733261896844,0.46490913,3624.1,3623.5,2.75975]
[1733261897049,0.6616084,3624.0,3623.1,1.5526]
[1733261897210,0.6616084,3624.0,3623.6,2.75964]
[1733261897553,0.20662605,3623.9,3623.6,2.75962]
[1733261897742,0.45498235,3624.0,3623.6,2.75962]
[1733261898050,0.2066269,3623.9,3623.6,2.75962]
[1733261898209,0.45498235,3624.0,3623.7,2.75959]
[1733261899027,0.20661975,3623.9,3623.8,2.75952]
[1733261899455,0.23422195,3623.9,3623.8,4.36482]
[1733261899660,1.6322,3624.8,3624.7,2.75884]
[1733261899959,3.09898282,3624.8,3624.7,2.75884]
[1733261900112,2.42756315,3624.8,3624.7,2.75884]
[1733261900310,2.0970248,3624.8,3624.7,2.75884]
[1733261900516,1.83878647,3624.8,3624.7,2.75884]
[1733261900750,2.09696266,3624.8,3624.7,2.75884]
[1733261900964,2.09696266,3624.8,3624.5,2.75898]
[1733261901126,2.09696266,3624.8,3623.8,5.077274]
[1733261901127,0.20658647,3624.7,3624.6,2.75892]
[1733261901960,0.2065271,3624.7,3624.6,2.75892]
[1733261903384,2.49981433,3625.0,3624.7,2.75883]
[1733261903674,0.46458858,3624.9,3624.7,2.75883]
[1733261903889,0.20648381,3624.8,3624.7,2.75883]
[1733261904036,2.49981433,3625.0,3624.7,2.75883]
[1733261904233,0.20648391,3624.9,3624.8,2.75877]
[1733261905092,1.654,3625.4,3625.0,2.75855]
[1733261905246,0.79485831,3625.3,3625.1,2.75853]
[1733261905434,0.46452758,3625.2,3625.1,2.75853]
[1733261905635,0.79480785,3625.2,3625.1,2.75853]
[1733261906253,0.46452758,3625.2,3625.1,2.75853]
[1733261906636,0.46452758,3625.2,3624.6,2.75892]
[1733261906978,0.46452758,3625.1,3624.9,2.75862]
[1733261907140,0.2064567,3625.0,3624.9,2.75862]
[1733261907564,0.23346286,3625.0,3624.9,2.75862]
[1733261908149,0.02700616,3625.0,3624.9,2.75862]
[1733261908337,1.654,3625.4,3625.3,2.75839]
[1733261908565,2.44838869,3625.4,3625.3,2.75839]
[1733261909574,2.11825313,3625.4,3625.3,2.75839]
[1733261909738,0.46425313,3625.4,3625.3,2.75839]
[1733261911789,1.6664,3625.7,3625.3,2.75839]
[1733261911969,0.20624336,3625.4,3625.3,2.75839]
[1733261912159,0.46404756,3625.4,3625.3,2.75839]
[1733261913571,0.20624336,3625.4,3625.3,2.75839]
[1733261913885,0.20624336,3625.4,3625.2,2.75844]
[1733261914040,0.20624336,3625.3,3625.2,2.75846]
[1733261914472,2.49981433,3625.6,3625.2,2.75846]
[1733261914644,2.49981433,3625.6,3625.5,2.75824]
[1733261914862,2.70595578,3625.6,3625.5,2.75824]
[1733261915248,2.70595298,3625.6,3625.0,4.42436]
[1733261915448,4.07318174,3626.0,3625.0,4.42436]
[1733261915449,2.49981433,3625.2,3625.1,2.75854]
[1733261920205,2.49981433,3625.6,3625.5,2.75824]
[1733261920375,2.49981433,3625.6,3625.4,2.75829]
[1733261920703,2.52745497,3625.6,3625.4,2.75829]
[1733261921067,1.5527,3625.5,3624.6,1.5486]
[1733261921219,2.49981433,3625.1,3624.6,1.5486]
[1733261921576,0.02767199,3625.0,3624.6,1.5486]
[1733261921825,0.02767199,3625.0,3624.9,2.75869]
[1733261924018,0.02767199,3625.0,3624.7,2.75883]
[1733261924330,0.02767199,3625.0,3624.8,2.75874]
[1733261924615,0.02767199,3625.0,3624.9,2.75869]
[1733261931419,0.02767199,3625.0,3624.7,2.75881]
[1733261931725,2.49981433,3625.1,3624.9,2.75869]
[1733261932594,2.49981433,3625.1,3624.3,1.6089]
[1733261932805,2.49981433,3624.7,3624.3,1.6089]
[1733261933005,2.49981433,3624.7,3624.4,2.75901]
[1733261933207,2.49981433,3624.7,3624.5,2.75897]
[1733261934386,2.49981433,3624.7,3624.4,2.75907]
[1733261935739,2.49981433,3624.7,3624.5,2.75899]
[1733261935924,2.91073576,3624.7,3624.3,2.75914]
[1733261936086,4.03761764,3624.6,3624.1,2.75929]
[1733261936442,2.49981433,3624.2,3624.1,2.75929]
[1733261936921,2.52641764,3624.2,3624.1,2.75929]
[1733261938299,2.52641764,3624.2,3623.9,2.75944]
[1733261938626,4.06541433,3624.0,3623.7,2.75958]
[1733261939026,0.0262898,3623.9,3623.5,2.75974]
[1733261939226,2.49981433,3623.6,3623.5,2.75974]
[1733261939527,2.52609367,3623.6,3623.5,2.75974]
[1733261940612,2.52609367,3623.6,3623.4,3.19139101]
[1733261941842,2.52609367,3623.6,3623.5,2.75976]
[1733261942347,2.52609367,3623.6,3623.4,0.43158101]
[1733261942641,2.52609367,3623.6,3623.5,2.75976]
[1733261943044,4.08949367,3623.6,3623.4,0.43158101]
[1733261943232,4.08949367,3623.6,3623.4,3.19137101]
[1733261943540,4.08949367,3623.6,3623.4,0.43158101]
[1733261943719,4.08949367,3623.6,3623.2,2.75995]
[1733261943916,2.49981433,3623.3,3623.2,2.75995]
[1733261944614,2.52505884,3623.3,3623.0,3.19189726]
[1733261944808,2.52505884,3623.3,3623.2,2.75999]
[1733261953614,1.23234101,3623.3,3623.2,2.75999]
[1733261960822,1.23234101,3623.3,3623.2,4.33759]
[1733261961066,1.2070965,3623.3,3623.2,4.33759]
[1733261961222,1.2070965,3624.5,3623.2,4.33759]
[1733261961223,1.5953,3624.6,3624.2,2.75922]
[1733261961424,1.2070965,3624.3,3623.8,1.5776]
[1733261961618,1.2070965,3623.9,3623.8,1.5776]
[1733261962355,1.2070965,3623.9,3623.8,4.33713]
[1733261963161,1.2070965,3623.9,3623.8,2.75953]
[1733261963732,1.49211615,3623.9,3623.6,2.75962]
[1733261964255,1.6431,3623.8,3623.0,0.43179815]
[1733261964458,1.2070965,3623.4,3623.2,2.75995]
[1733261964845,1.2070965,3623.4,3623.1,2.76004]
[1733261965421,0.02494125,3623.3,3623.1,2.76004]
[1733261965623,2.496947,3623.2,3623.1,2.76004]
[1733261966157,2.52188825,3623.2,3623.1,2.76004]
[1733261968240,5.43533408,3623.2,3622.8,0.43182335]
[1733261968439,5.46290149,3623.2,3622.7,2.76033]
[1733261968639,2.496947,3622.8,3622.7,2.76033]
[1733261969044,2.496947,3622.8,3622.5,2.76051]
[1733261969254,4.16498825,3622.8,3622.5,2.76051]
[1733261969430,4.16498825,3622.8,3622.3,0.43186046]
[1733261970473,4.16498825,3622.8,3622.7,2.76037]
[1733261971271,2.52188825,3622.8,3622.7,2.76037]
[1733261972642,2.52188825,3622.8,3622.4,2.76053]
[1733261973153,2.52188825,3622.8,3622.5,2.7605]
[1733261973350,1.6431,3622.5,3622.3,0.43186046]
[1733261973549,1.6431,3622.5,3622.3,2.76065]
[1733261973809,0.02470591,3622.4,3622.3,2.76065]
[1733261973977,1.6431,3622.5,3622.3,2.76065]
[1733261974324,0.02470591,3622.4,3622.3,2.76065]
[1733261974683,1.6431,3622.5,3622.4,2.7606]
[1733261974886,4.140047,3622.5,3622.4,2.7606]
[1733261975082,2.52165291,3622.5,3622.4,2.7606]
[1733261978019,4.03645291,3622.5,3622.4,2.7606]
[1733261980122,4.4400982,3622.5,3621.9,1.94909339]
[1733261980453,1.9431512,3622.5,3622.2,2.76072]
[1733261980621,1.9431512,3622.5,3621.9,0.43189339]
[1733261980622,1.53950591,3622.5,3622.0,2.7609]
[1733261981738,1.53950591,3622.5,3620.6,3.22283892]
[1733261981739,2.496947,3622.1,3621.3,1.5982]
[1733261981944,1.53950591,3622.5,3621.4,2.76136]
[1733261981945,2.496947,3621.5,3621.4,2.76136]
[1733261985758,1.5174,3621.4,3621.3,2.76143]
[1733261986320,1.5174,3621.4,3620.9,2.7617]
[1733261986547,1.5174,3621.4,3620.6,3.19403235]
[1733261986760,2.496947,3621.0,3620.9,2.76174]
[1733261987064,1.5174,3622.3,3621.7,2.76111]
[1733261987218,2.496947,3621.8,3621.7,2.76111]
[1733261987419,4.014347,3621.8,3621.6,2.76115]
[1733261987914,4.014347,3621.8,3620.8,2.76182]
[1733261988231,4.014347,3621.8,3621.5,2.76128]
[1733261988561,6.9127287,3621.8,3621.3,2.76138]
[1733261988719,2.496947,3621.4,3621.3,2.76138]
[1733261991853,2.496947,3621.8,3621.7,2.76113]
[1733261996124,2.496947,3621.8,3621.4,2.76132]
[1733261996125,6.511294,3621.8,3621.4,2.76132]
[1733261996371,0.02756741,3621.7,3621.4,2.76132]
[1733261996570,1.5174,3621.5,3621.4,2.76132]
[1733261996761,1.54496741,3621.5,3621.3,2.76143]
[1733261996966,2.496947,3621.4,3621.3,2.76143]
[1733261999240,4.014347,3621.4,3621.3,2.76143]
[1733262000373,4.014347,3621.4,3620.6,1.99336235]
[1733262000548,2.496947,3620.7,3620.6,4.75529235]
[1733262001068,2.496947,3620.7,3620.6,3.19399235]
[1733262001585,2.496947,3620.7,3620.6,2.76193]
[1733262009813,1.20888937,3620.7,3620.6,2.76193]
[1733262013420,1.20888937,3620.7,3620.5,2.76203]
[1733262013736,2.74958937,3620.6,3620.5,2.76203]
[1733262013937,1.5407,3620.5,3620.0,2.76239]
[1733262014124,1.5407,3620.0,3619.7,2.76264]
[1733262014326,1.20888937,3619.8,3619.7,2.76264]
[1733262014831,1.5407,3620.0,3618.8,2.76334]
[1733262014832,1.565,3620.0,3618.8,2.76334]
[1733262015156,1.20888937,3619.6,3619.5,4.35241]
[1733262017130,1.20888937,3619.8,3619.7,2.76259]
[1733262017629,0.70545499,3621.3,3619.9,2.76244]
[1733262017974,2.40652181,3620.9,3620.8,2.76182]
[1733262018282,1.9937586,3620.9,3620.8,2.76182]
[1733262019070,2.73666233,3620.9,3620.8,2.76182]
[1733262019233,2.73666233,3620.9,3620.4,2.76209]
[1733262019234,1.20726233,3620.9,3620.4,2.76209]
[1733262019571,1.5294,3620.7,3620.5,2.76198]
[1733262019874,2.02009885,3620.7,3620.6,2.76197]
[1733262020054,4.28785288,3620.7,3620.2,2.76227]
[1733262020260,2.50051555,3620.3,3620.2,2.76227]
[1733262023262,2.50051555,3620.3,3620.0,2.76241]
[1733262023458,2.50051555,3620.3,3620.1,2.76233]
[1733262023785,1.5977,3620.2,3620.1,2.76233]
[1733262024181,1.62526741,3620.2,3619.6,2.76273]
[1733262024382,0.13816784,3620.9,3619.6,2.76273]
[1733262024383,4.09821555,3619.7,3619.6,2.76273]
[1733262024584,4.09821555,3619.7,3619.1,2.76311]
[1733262024745,4.09821555,3619.7,3619.2,2.763]
[1733262025081,4.09821555,3619.7,3619.5,2.7628]
[1733262025266,4.09821555,3619.7,3619.0,1.5809]
[1733262025267,4.09821555,3619.7,3619.2,2.76304]
[1733262025470,4.09821555,3619.7,3619.5,2.7628]
[1733262026052,4.09821555,3619.7,3619.5,2.76275]
[1733262026750,4.09821555,3619.7,3619.5,3.19499249]
[1733262026971,4.09821555,3619.7,3619.5,0.43224249]
[1733262027179,4.09821555,3619.7,3619.6,2.76273]
[1733262027490,0.42994122,3620.8,3619.6,1.5189]
[1733262027491,2.50051555,3620.1,3619.6,1.5189]
[1733262027645,4.10541555,3620.5,3619.6,1.5189]
[1733262027846,4.10541555,3620.5,3620.0,2.76239]
[1733262027847,0.25784288,3620.4,3620.0,2.76239]
[1733262028045,4.10541555,3620.5,3620.2,2.76227]
[1733262028046,0.2062743,3620.3,3620.2,2.76227]
[1733262028280,4.10541555,3620.5,3619.6,4.28161]
[1733262028281,2.50051555,3620.5,3619.6,4.28161]
[1733262028441,1.6049,3620.8,3620.6,2.76193]
[1733262028646,0.20627192,3620.7,3620.6,2.76193]
[1733262028883,0.20627192,3620.7,3619.7,0.47138525]
[1733262029094,2.50051555,3620.5,3620.2,2.76224]
[1733262029459,2.50051555,3620.5,3619.7,1.5189]
[1733262029793,2.50051555,3620.5,3619.2,2.76298]
[1733262029794,0.02756741,3620.4,3619.9,2.76249]
[1733262030184,0.02756741,3620.4,3619.6,2.76273]
[1733262030387,0.02756741,3620.4,3619.9,2.76245]
[1733262031437,2.50051555,3620.5,3619.9,2.76245]
[1733262031586,0.20636696,3620.4,3619.9,2.76245]
[1733262031923,0.20637495,3620.3,3619.9,2.76245]
[1733262032086,0.02756741,3620.3,3619.9,2.76245]
[1733262032281,2.50051555,3620.5,3620.0,2.76235]
[1733262032501,0.20639479,3620.4,3619.7,2.76265]
[1733262032820,0.20639479,3620.4,3619.5,0.43224249]
[1733262032821,0.02756741,3620.4,3619.8,2.76251]
[1733262033195,0.02756741,3620.4,3619.5,0.43224249]
[1733262033196,4.11561555,3620.1,3619.5,0.43224249]
[1733262033522,4.11561555,3620.1,3619.6,2.76272]
[1733262035220,0.02756741,3620.0,3619.5,0.43224249]
[1733262035425,0.44188571,3620.0,3619.5,0.43224249]
[1733262035629,2.50051555,3619.7,3619.2,2.76297]
[1733262036301,2.50051555,3619.3,3619.0,0.43225148]
[1733262036631,2.50051555,3619.3,3619.0,3.19543148]
[1733262036830,2.50051555,3619.3,3619.1,2.7631]
[1733262037030,2.50051555,3619.3,3619.0,3.19543148]
[1733262037329,2.50051555,3619.3,3618.1,1.5041]
[1733262037330,1.6575,3619.2,3618.2,2.7638]
[1733262037627,2.50051555,3618.9,3618.7,2.76341]
[1733262039148,2.50051555,3618.9,3618.5,0.43231117]
[1733262039557,2.50051555,3618.9,3618.7,2.76338]
[1733262039702,2.50051555,3618.9,3618.5,0.43231117]
[1733262040035,1.5947,3618.8,3618.5,0.43231117]
[1733262040409,1.5947,3618.8,3618.5,3.19584117]
[1733262040610,1.5947,3618.8,3618.6,2.76348]
[1733262041122,1.5947,3618.8,3618.7,2.76342]
[1733262041643,2.50051555,3618.9,3618.8,2.76334]
[1733262044950,1.6099,3619.1,3618.8,2.76334]
[1733262045136,1.6099,3619.1,3618.9,2.76324]
[1733262046054,2.50051555,3619.3,3618.5,4.79493117]
[1733262046055,2.50051555,3619.3,3619.1,2.76305]
[1733262046223,0.4143183,3620.0,3618.5,2.03141117]
[1733262046224,1.6426,3619.6,3618.6,2.76349]
[1733262046426,1.6426,3619.6,3619.3,2.7629]
[1733262046653,0.20636184,3619.5,3619.3,2.7629]
[1733262046864,1.6426,3619.6,3619.3,2.7629]
[1733262047212,0.20635245,3619.5,3619.3,2.7629]
[1733262047457,0.20635245,3619.4,3619.3,2.7629]
[1733262047758,1.6426,3619.3,3618.8,2.76334]
[1733262047941,2.50051555,3619.0,3618.8,2.76334]
[1733262048326,2.50051555,3619.0,3618.6,2.76348]
[1733262048527,2.50051555,3619.0,3618.4,2.76358]
[1733262048734,1.6426,3618.9,3618.1,4.36292]
[1733262048936,1.6426,3618.9,3618.5,2.76353]
[1733262049650,1.6426,3618.9,3618.6,2.76349]
[1733262050858,1.6426,3618.9,3618.3,3.19600779]
[1733262051164,1.6426,3618.9,3618.4,2.76359]
[1733262051466,1.6426,3618.9,3618.7,2.76338]
[1733262051664,1.6426,3618.9,3618.3,0.43232779]
[1733262051665,1.6426,3618.9,3618.8,2.76334]
[1733262051864,1.6426,3618.9,3618.6,2.76348]
[1733262052032,1.6426,3618.9,3618.7,2.76339]
[1733262053254,1.6426,3618.9,3618.5,2.76354]
[1733262054146,1.6426,3618.9,3618.3,3.19603779]
[1733262054534,1.6426,3618.9,3618.3,0.43232779]
[1733262054833,1.6426,3618.9,3618.4,2.76362]
[1733262055355,1.6426,3618.9,3618.3,0.43232779]
[1733262055563,1.6426,3618.9,3618.5,2.76357]
[1733262056163,1.6426,3618.9,3618.3,0.43232779]
[1733262056341,1.6426,3618.9,3618.4,2.76361]
[1733262056851,1.6426,3618.9,3618.5,2.76355]
[1733262057247,1.67016741,3618.9,3618.3,3.19604779]
[1733262057442,1.67016741,3618.9,3618.4,2.76364]
[1733262057638,2.0596683,3618.9,3618.4,2.76364]
[1733262058443,2.0596683,3618.9,3618.1,1.5991]
[1733262058640,2.0596683,3618.9,3618.5,2.76356]
[1733262059795,2.0596683,3618.9,3618.7,2.76342]
[1733262059990,1.6426,3618.9,3618.7,2.76342]
[1733262060361,1.6426,3618.9,3618.3,2.76372]
[1733262060565,1.6426,3618.9,3618.5,2.76351]
[1733262060795,1.6426,3618.9,3618.5,2.76355]
[1733262061589,1.6426,3618.9,3618.6,2.76347]
[1733262061902,1.6426,3618.9,3618.1,1.5991]
[1733262062096,1.6426,3618.9,3618.7,2.76339]
[1733262062403,2.05691156,3618.9,3618.5,2.7635]
[1733262062693,2.05691156,3618.9,3618.1,1.5991]
[1733262062694,0.20664683,3618.8,3618.6,2.76349]
[1733262062890,2.05691156,3618.9,3618.1,1.5991]
[1733262063096,0.20664728,3618.8,3618.1,1.5991]
[1733262063264,0.20664728,3618.8,3618.0,3.19627203]
[1733262063265,1.5132,3618.5,3618.0,3.19627203]
[1733262063471,1.5132,3618.5,3618.0,2.76393]
[1733262063472,0.02756741,3618.4,3618.0,2.76393]
[1733262063671,2.50051555,3618.2,3617.6,2.02965797]
[1733262063889,1.5132,3618.5,3618.4,2.76365]
[1733262064051,1.7199599,3618.5,3617.7,0.2029658]
[1733262064256,2.50051555,3618.6,3618.3,2.7637]
[1733262064500,2.50051555,3618.6,3617.9,2.764]
[1733262064501,0.20680635,3618.5,3618.2,0.01576991]
[1733262064663,2.50051555,3618.6,3618.3,2.76369]
[1733262065255,2.50051555,3618.6,3618.2,0.01576991]
[1733262065496,2.50051555,3618.6,3618.2,2.77953991]
[1733262066073,0.23442778,3618.5,3618.2,0.01576991]
[1733262066382,1.5132,3618.3,3618.2,0.01576991]
[1733262066558,1.72010872,3618.3,3618.2,0.01576991]
[1733262068407,2.14492789,3618.3,3618.2,0.01576991]
[1733262068766,2.40353895,3618.3,3618.2,0.01576991]
[1733262068969,2.40353757,3618.3,3618.2,0.01576991]
[1733262069177,2.14492789,3618.3,3618.2,0.01576991]
[1733262069504,1.93801917,3618.3,3618.2,0.01576991]
[1733262070009,2.14491013,3618.3,3618.2,0.01576991]
[1733262070173,1.72009096,3618.3,3618.2,0.01576991]
[1733262073407,0.20689096,3618.3,3618.2,0.01576991]
[1733262073775,1.6437,3618.5,3618.2,0.01576991]
[1733262073973,0.20679035,3618.4,3618.2,0.01576991]
[1733262074202,1.6437,3618.3,3618.2,0.01576991]
[1733262074680,1.85049597,3618.3,3618.2,0.01576991]
[1733262074881,1.6437,3618.3,3618.2,0.01576991]
[1733262075689,4.14421555,3618.6,3618.2,0.01576991]
[1733262075900,4.55863711,3618.6,3618.2,0.01576991]
[1733262076599,0.20680614,3618.5,3618.2,0.01576991]
[1733262076800,0.20680614,3618.4,3618.2,0.01576991]
[1733262076992,0.02756741,3618.5,3618.2,0.01576991]
[1733262077199,0.20683993,3618.4,3618.2,0.01576991]
[1733262077433,4.14421555,3618.6,3618.2,0.01576991]
[1733262077633,1.2103818,3618.4,3618.2,2.77955991]
[1733262078716,1.2103818,3618.4,3618.2,1.55556991]
[1733262079061,1.2103818,3618.4,3618.3,2.76372]
[1733262079237,1.41727294,3618.4,3618.3,2.76372]
[1733262079392,1.67590069,3618.4,3618.3,2.76372]
[1733262079594,1.67590069,3618.4,3618.2,0.01576991]
[1733262079817,0.25862775,3618.3,3618.2,0.01576991]
[1733262080345,7.16716445,3618.3,3618.2,0.01576991]
[1733262080545,7.96807397,3618.3,3618.2,0.01576991]
[1733262080842,6.75769217,3618.3,3618.2,0.01576991]
[1733262081011,6.49902005,3618.3,3618.2,0.01576991]
[1733262081220,7.70940185,3618.3,3618.2,0.01576991]
[1733262081739,4.94568185,3618.3,3618.2,0.01576991]
[1733262081930,5.38711718,3618.3,3618.2,0.01576991]
[1733262082441,4.97324926,3618.3,3618.2,0.01576991]
[1733262083152,4.972949,3618.3,3618.2,0.01576991]
[1733262083615,6.26737331,3618.3,3618.2,0.01576991]
[1733262083816,6.2398059,3618.3,3618.2,0.01576991]
[1733262084510,9.0035259,3618.3,3618.2,0.01576991]
[1733262085054,6.2398059,3618.3,3618.2,0.01576991]
[1733262086435,6.23952142,3618.3,3618.2,0.01576991]
[1733262086837,1.77974435,3618.3,3618.2,0.01576991]
[1733262087137,1.20993948,3618.3,3618.2,0.01576991]
[1733262087447,2.50480611,3618.5,3618.2,0.01576991]
[1733262087651,0.20674969,3618.3,3618.2,0.01576991]
[1733262087810,0.46518687,3618.3,3618.2,0.01576991]
[1733262088211,0.46518687,3618.3,3618.2,2.77956991]
[1733262088563,0.25843718,3618.3,3618.2,3.49642871]
[1733262089410,0.46523487,3618.3,3618.2,3.49642871]
[1733262089847,2.00583487,3618.3,3618.2,3.49642871]
[1733262090056,0.46528988,3618.3,3618.2,3.49642871]
[1733262090350,0.25849219,3618.3,3618.2,3.49642871]
[1733262090734,0.46528594,3618.3,3618.2,3.49642871]
[1733262091050,0.25849219,3618.3,3618.2,3.49642871]
[1733262091212,0.4652954,3618.3,3618.2,3.49642871]
[1733262091412,0.25849219,3618.3,3618.2,3.49642871]
[1733262091730,0.46531868,3618.3,3618.2,3.49642871]
[1733262091935,0.46531865,3618.3,3618.2,3.49642871]
[1733262092255,0.25849219,3618.3,3618.2,3.49642871]
[1733262092555,0.87913384,3618.3,3618.2,0.73262871]
[1733262092770,0.87913384,3618.3,3618.2,2.77956991]
[1733262093049,0.46537274,3618.3,3618.2,2.77956991]
[1733262093431,0.46548148,3618.3,3618.2,2.77956991]
[1733262093624,0.25860093,3618.3,3618.2,2.77956991]
[1733262093826,0.4654841,3618.3,3618.2,2.77956991]
[1733262094065,0.4654841,3618.3,3618.2,3.22003271]
[1733262094808,5.23140279,3618.3,3618.2,0.01576991]
[1733262095013,2.79873563,3618.3,3618.2,0.01576991]
[1733262095212,3.36846201,3618.3,3618.2,0.01576991]
[1733262095443,3.23020309,3618.3,3618.2,0.01576991]
[1733262095613,4.15350441,3618.3,3618.2,0.01576991]
[1733262095919,4.31933138,3618.3,3618.2,0.01576991]
[1733262096255,4.31933806,3618.3,3618.2,0.01576991]
[1733262096865,3.88798582,3618.3,3618.2,0.01576991]
[1733262097013,4.7333565,3618.3,3618.2,0.01576991]
[1733262097410,3.36861845,3618.3,3618.2,0.01576991]
[1733262097878,3.78243607,3618.3,3618.2,0.01576991]
[1733262098635,3.0575297,3618.3,3618.2,0.01576991]
[1733262098836,3.78239403,3618.3,3618.2,0.01576991]
[1733262099238,2.19399403,3618.3,3618.2,0.01576991]
[1733262099438,1.64194704,3618.3,3618.2,0.01576991]
[1733262099656,1.4691297,3618.3,3618.2,0.01576991]
[1733262100378,1.468851,3618.3,3618.2,0.01576991]
[1733262102375,1.64166515,3618.3,3618.2,0.01576991]
[1733262102544,1.77991695,3618.3,3618.2,0.01576991]
[1733262102886,1.64166515,3618.3,3618.2,0.01576991]
[1733262103177,2.19365963,3618.3,3618.2,0.01576991]
[1733262103552,2.67981495,3618.3,3618.2,0.01576991]
[1733262103736,6.16834047,3618.3,3618.2,0.01576991]
[1733262103936,6.16832073,3618.3,3618.2,0.01576991]
[1733262104134,3.40460073,3618.3,3618.2,0.01576991]
[1733262107325,1.21096395,3618.3,3618.2,0.01576991]
[1733262107471,3.40468386,3618.3,3618.2,0.01576991]
[1733262109299,3.40480411,3618.3,3618.2,0.01576991]
[1733262110797,2.7325487,3618.3,3618.2,0.01576991]
[1733262111095,3.40510654,3618.3,3618.2,0.01576991]
[1733262112287,2.99122479,3618.3,3618.2,0.01576991]
[1733262112786,2.85297056,3618.3,3618.2,0.01576991]
[1733262112989,2.9912237,3618.3,3618.2,0.01576991]
[1733262113518,2.99122441,3618.3,3618.2,0.01576991]
[1733262113700,2.85296943,3618.3,3618.2,0.01576991]
[1733262113901,2.68015107,3618.3,3618.2,0.01576991]
[1733262114317,4.64724179,3618.3,3618.2,0.01576991]
[1733262114527,5.44397145,3618.3,3618.2,0.01576991]
[1733262114681,2.68025145,3618.3,3618.2,0.01576991]
[1733262116505,2.85307151,3618.3,3618.2,0.01576991]
[1733262116820,2.68025145,3618.3,3618.2,0.01576991]
[1733262117819,2.00769361,3618.3,3618.2,0.01576991]
[1733262118017,2.68031775,3618.3,3618.2,0.01576991]
[1733262118398,2.81857334,3618.3,3618.2,0.01576991]
[1733262118728,3.8912817,3618.3,3618.2,0.01576991]
[1733262118884,3.73829112,3618.3,3618.2,0.01576991]
[1733262119424,4.152322,3618.3,3618.2,0.01576991]
[1733262119734,4.152322,3618.3,3618.2,1.59116991]
[1733262119735,1.78043422,3618.3,3618.2,1.59116991]
[1733262119894,1.4693538,3618.3,3618.2,1.59116991]
[1733262120230,0.46564436,3618.3,3618.2,1.59116991]
[1733262121017,0.20694277,3618.3,3618.2,1.59116991]
[1733262121221,0.46569565,3618.3,3618.2,2.04955847]
[1733262121530,1.21096395,3618.5,3618.3,1.5561]
[1733262121740,0.20699398,3618.4,3618.3,2.76372]
[1733262122041,1.21096395,3618.5,3618.3,2.76372]
[1733262122339,1.21096395,3618.5,3618.4,1.83404899]
[1733262122638,1.21096395,3618.5,3618.4,4.59769899]
[1733262122792,0.20694663,3618.5,3618.4,1.83404899]
[1733262122997,1.21096395,3618.7,3618.4,4.59769899]
[1733262123198,1.21096395,3618.7,3618.5,0.46134689]
[1733262124739,1.21096395,3618.7,3618.4,4.59762899]
[1733262124907,1.85983918,3619.7,3618.6,4.41879]
[1733262125107,1.21096395,3619.0,3618.9,4.30686]
[1733262125431,1.21096395,3619.0,3618.9,1.5436]
[1733262125729,1.21096395,3619.0,3618.9,4.30687]
[1733262125932,1.21096395,3619.0,3618.9,5.013906]
[1733262126144,5.7623,3620.2,3618.9,5.013906]
[1733262126145,0.41338459,3619.7,3619.1,1.5945]
[1733262126347,1.67573005,3619.6,3619.5,1.5803]
[1733262126492,1.41752617,3619.6,3619.5,1.5803]
[1733262126698,1.21096395,3619.6,3619.5,1.5803]
[1733262127843,2.50160422,3620.0,3619.5,1.5803]
[1733262128073,0.20639714,3619.9,3619.5,1.5803]
[1733262128361,0.32997042,3620.5,3619.9,2.76248]
[1733262128552,0.20621089,3620.4,3619.9,2.76248]
[1733262128736,0.20621089,3620.4,3619.7,1.5042]
[1733262128938,2.50160422,3620.9,3620.2,1.5835]
[1733262129248,0.20619258,3620.8,3620.2,1.5835]
[1733262129450,2.50160422,3620.9,3620.2,1.5835]
[1733262129814,0.20598207,3620.8,3620.2,4.50411]
[1733262130014,2.50160422,3620.9,3620.2,4.50411]
[1733262130260,0.20597868,3620.8,3620.2,1.74185]
[1733262130765,2.52917163,3620.9,3620.2,1.74185]
[1733262130921,2.50160422,3620.6,3620.2,1.74185]
[1733262131436,2.50160422,3620.6,3620.3,0.450418]
[1733262131647,1.527,3621.0,3620.3,0.450418]
[1733262131855,2.50160422,3620.8,3620.3,0.450418]
[1733262132763,2.50160422,3620.7,3620.3,0.450418]
[1733262132915,2.50160422,3620.7,3620.2,1.74185]
[1733262133433,2.50160422,3620.4,3620.2,0.15835]
[1733262133631,2.50160422,3620.4,3619.9,1.6465]
[1733262134649,2.50160422,3620.0,3619.6,1.80453]
[1733262134873,0.02756741,3619.9,3619.2,1.6465]
[1733262135027,2.50160422,3619.5,3619.2,1.81115]
[1733262135224,2.50160422,3619.5,3618.9,1.6465]
[1733262136963,2.50160422,3619.9,3619.1,2.76308]
[1733262137174,2.50160422,3619.9,3619.3,2.76295]
[1733262137463,2.50160422,3620.3,3619.2,4.36181]
[1733262137765,2.50160422,3620.3,3619.7,1.5988]
[1733262137924,2.50160422,3620.3,3619.7,4.36144]
[1733262138261,2.50160422,3620.3,3619.7,1.5988]
[1733262138936,2.50160422,3620.3,3619.3,0.436181]
[1733262138937,2.50160422,3620.3,3619.6,2.76273]
[1733262139669,2.50160422,3620.3,3619.7,2.76264]
[1733262139838,2.50160422,3620.3,3619.8,0.276264]